Cogmind - Beta 9.6 @@@ ROGUE MODE // 2020.05.15 @ 18:06:50 Player: slowdive Result: Destroyed self with YOLO Cannon Performance ------------- Evolutions (0) 0 Regions Visited (4) 800 Robots Destroyed (22) 110 Value Destroyed (516) 516 Prototype IDs (22) 440 Alien Tech Used (0) 0 Bonus (300) 300 TOTAL SCORE: 2166 Bonus ------- Aligned with FarCom 300 Cogmind --------- Core Integrity 0/250 Matter 267/300 Energy 415/500 System Corruption 3% Temperature Cool (0) Movement Walking (150) Ox1 Location -9/Mines Parts ------- > --- POWER (1) -------- (None) > --- PROPULSION (2) --- Aluminum Leg Aluminum Leg > --- UTILITY (2) ------ Large Storage Unit High-capacity Battery > --- WEAPON (2) ------- YOLO Cannon > --- INVENTORY (10) --- Reinforced Deuterium Engine Wheel Compact Wheel Flight Unit Improved Terrain Scanner Seismic Analyzer Cloak of Protection Latent Energy Streamer Peak State ------------ > --- POWER ------------ Light Ion Engine > --- PROPULSION ------- Wheel Wheel > --- UTILITY ---------- Large Storage Unit Cloak of Protection > --- WEAPON ----------- Latent Energy Streamer Makeshift Axe > --- INVENTORY -------- Backup Power I Reinforced Deuterium Engine Aluminum Leg Compact Wheel High-capacity Battery Improved Terrain Scanner Seismic Analyzer YOLO Cannon [Rating: 29] Favorites ----------- Power Light Ion Engine Engine Light Ion Engine Propulsion Wheel Treads Improved Treads Leg Aluminum Leg Wheel Wheel Utility Large Storage Unit Device Improved Terrain Scanner Storage Large Storage Unit Protection Improved Light Armor Plating Weapon Assault Rifle Energy Gun Backup Laser I Energy Cannon Latent Energy Streamer Ballistic Gun Assault Rifle Launcher Rocket Launcher Special Weapon Welding Torch Slashing Weapon Makeshift Axe Build | -11 -10 -10 -10 -9 ------- Run | Scr Mat Min Exi Min Slots Evolved . | . . . . . Power . | . . . . . Propulsion . | . . . . . Utility . | . . . . . Weapon . | . . . . . Parts Attached 39 | 5 11 10 5 8 Power 6 | 1 1 3 1 . Engine 6 | 1 1 3 1 . Core . | . . . . . Reactor . | . . . . . Propulsion 11 | 2 4 2 1 2 Treads 2 | . 2 . . . Leg 6 | 2 2 . . 2 Wheel 3 | . . 2 1 . Hover . | . . . . . Flight . | . . . . . Utility 7 | . 2 2 2 1 Device 3 | . 1 1 1 . Storage 3 | . 1 . 1 1 Processor . | . . . . . Hackware . | . . . . . Protection 1 | . . 1 . . Artifact . | . . . . . Weapon 15 | 2 4 3 1 5 Energy Gun . | . . . . . Energy Cannon 2 | . . . 1 1 Ballistic Gun 7 | 2 3 2 . . Ballistic Cannon . | . . . . . Launcher 3 | . 1 . . 2 Special Weapon 1 | . . 1 . . Impact Weapon . | . . . . . Slashing Weapon 2 | . . . . 2 Piercing Weapon . | . . . . . Special Melee Weapon . | . . . . . Unidentified Prototypes 1 | . . . 1 . Parts Lost 7 | . 1 3 . 3 Power 3 | . 1 1 . 1 Propulsion 1 | . . . . 1 Utility . | . . . . . Weapon 3 | . . 2 . 1 Highest Loss Streak 2 | . 1 2 . 2 Average Slot Usage (%) 94 | . 89 96 94 98 Engine 13 | . 13 14 13 14 Treads 5 | . 12 19 . . Leg 6 | . 14 . . 21 Wheel 15 | . . 8 28 5 Device 10 | . 7 12 14 2 Storage 15 | . 11 14 14 25 Energy Cannon 2 | . . . 5 2 Ballistic Gun 12 | . 25 22 8 . Launcher 2 | . 2 . . 11 Special Weapon 4 | . . 3 8 . Slashing Weapon 2 | . . . . 13 Naked Turns . | . . . . . Heaviest Build 40 | 7 28 29 37 40 Greatest Support 46 | 20 46 46 26 20 Greatest Overweight (x) 9 | . 9 6 1 2 Average Overweight (x) . | . . . . 1 Largest Inventory Capacity 10 | 4 10 10 10 10 Average Capacity 9 | 4 8 10 9 10 Most Carried 10 | 4 4 8 9 10 Average Carried 6 | 2 2 5 6 9 Final Capacity 10 | 4 10 10 10 10 Final Carried 9 | 4 3 6 9 8 Class Distribution -------------------- 67% | Mutant 32% | Scavenger-Mutant Dominant Class ---------------- Mutant | -10/Materials Mutant | -10/Mines Scavenger-Mutant | -10/Exiles Mutant | -9/Mines Resources | -11 -10 -10 -10 -9 ----------- Run | Scr Mat Min Exi Min Matter Collected 914 | 280 271 181 50 132 Remotely . | . . . . . Salvage Created 483 | 46 317 24 . 96 Parts 33 | 1 22 . . 10 Haulers Intercepted . | . . . . . Recyclers Shooed . | . . . . . Parts Field Recycled . | . . . . . Retrieved Matter . | . . . . . Parts Self-Destructed . | . . . . . Prevented . | . . . . . Kills | -11 -10 -10 -10 -9 ------- Run | Scr Mat Min Exi Min Combat Hostiles Destroyed 20 | 1 10 3 . 6 Melee 1 | . . . . 1 Guns 10 | 1 6 3 . . AOE 9 | . 4 . . 5 Classes Destroyed 7 | 1 2 2 . 2 Worker 1 | . . . . 1 Watcher 1 | . 1 . . . Swarmer 7 | . 3 . . 4 Grunt 9 | 1 7 . . 1 Duelist 1 | . . . . 1 Demolisher 1 | . . 1 . . Assembled 2 | . . 2 . . Best Kill Streak 5 | 1 3 2 . 5 Combat Bots Only 4 | 1 3 2 . 4 Max Kills in Single Turn 2 | 1 1 1 . 2 Gunslinging . | . . . . . Exploded 2 | . 1 . . 2 Melee 1 | . . . . 1 Uniques/NPCs Destroyed . | . . . . . Combat | -11 -10 -10 -10 -9 -------- Run | Scr Mat Min Exi Min Damage Taken 1603 | 56 534 682 . 331 Core 272 | 22 90 88 . 72 Absorbed by Shields . | . . . . . Core Remaining (%) 91 | 91 . . . . Volleys Fired 53 | 5 20 16 . 12 Largest 2 | 2 2 2 . 1 Hottest 100 | 40 50 40 . 100 Shots Fired 84 | 10 39 23 . 12 Gun 65 | 10 32 23 . . Cannon 4 | . . . . 4 Launcher 15 | . 7 . . 8 Special . | . . . . . Kinetic 65 | 10 32 23 . . Thermal 1 | . . . . 1 Explosive 15 | . 7 . . 8 Electromagnetic 3 | . . . . 3 Robot Hit Streak 4 | 4 4 4 . 1 Robot Miss Streak 4 | 1 4 2 . 2 Penetration Max . | . . . . . Secondary Targets 2 | . 2 . . . Max Gunslinging Chain 1 | . 1 . . . Shots Hit Robots 44 | 6 20 12 . 6 Core Hits 40 | 2 15 7 . 16 Critical Hits 1 | . 1 . . . Critical Kills 1 | . 1 . . . Critical Parts Destroyed . | . . . . . Melee Attacks 3 | . . . . 3 Impact . | . . . . . Slashing 3 | . . . . 3 Piercing . | . . . . . Sneak Attacks . | . . . . . Combat Hostiles . | . . . . . Follow-up Attacks . | . . . . . Damage Inflicted 1644 | 71 491 136 . 946 Guns 421 | 71 214 136 . . Cannons 151 | . . . . 151 Explosions 1015 | . 277 . . 738 Melee 57 | . . . . 57 Ramming . | . . . . . Kinetic 421 | 71 214 136 . . Thermal 220 | . . . . 220 Explosive 891 | . 277 . . 614 Electromagnetic 55 | . . . . 55 Impact . | . . . . . Slashing 57 | . . . . 57 Piercing . | . . . . . Highest Corruption 3 | . . . . 3 Average Corruption 2 | . . . . 2 Corruption Purged . | . . . . . Effects 11 | . . . . 11 Message Errors 4 | . . . . 4 Matter Fused 2 | . . . . 2 Heat Flow Errors 2 | . . . . 2 Energy Discharges 1 | . . . . 1 Data Loss (minor) 1 | . . . . 1 Targeting Errors 1 | . . . . 1 Overload Shots . | . . . . . Overflow Damage 25 | . . . . 25 Projectiles 18 | . . . . 18 Explosions 7 | . . . . 7 Melee . | . . . . . Knockbacks . | . . . . . Impact . | . . . . . Kinetic . | . . . . . Secondary . | . . . . . Self-Inflicted Damage 102 | . . . . 102 Shots 2 | . . . . 2 Rammed . | . . . . . Targets Rammed . | . . . . . Kicked . | . . . . . Crushed . | . . . . . Highest Temperature 274 | . 8 18 . 274 Average Temperature 56 | . 4 8 . 87 Received Heat Transfer 377 | 30 189 80 . 78 Effects 1 | . . . . 1 Interference 1 | . . . . 1 Siege Activations . | . . . . . Robots Corrupted . | . . . . . Combat Hostiles . | . . . . . Parts Fried . | . . . . . Impact Corruptions . | . . . . . Robots Melted . | . . . . . Combat Hostiles . | . . . . . Parts Melted . | . . . . . Heat Transferred 160 | . . . . 160 Parts Sabotaged . | . . . . . Parts Stolen . | . . . . . Parts Stripped . | . . . . . Power Chain Reactions . | . . . . . Missiles Intercepted . | . . . . . Latent Energy Used 44 | . . . . 44 LE Corruption 3 | . . . . 3 Alert | -11 -10 -10 -10 -9 ------- Run | Scr Mat Min Exi Min Peak Influence 292 | 20 292 51 . 135 Average Influence 71 | 7 159 30 . 44 Maximum Alert Level 1 | . 1 . . . Low Security (%) 88 | 100 62 100 . 100 Level 1 11 | . 37 . . . Level 2 . | . . . . . Level 3 . | . . . . . Level 4 . | . . . . . Level 5 . | . . . . . High Security . | . . . . . Max Security . | . . . . . Squads Dispatched 2 | . 2 . . . Investigation 1 | . 1 . . . Extermination . | . . . . . Reinforcement 1 | . 1 . . . Assault . | . . . . . Garrison . | . . . . . Intercept . | . . . . . Construction Impeded . | . . . . . Haulers Reinforced . | . . . . . Stealth | -11 -10 -10 -10 -9 --------- Run | Scr Mat Min Exi Min Distress Signals 2 | . 2 . . . Communications Jammed . | . . . . . Distress Signals . | . . . . . Times Spotted 32 | 1 18 3 . 10 Peak Tracking Total 5 | 1 5 2 . 4 Tactical Retreats 3 | . 2 . . 1 Traps | -11 -10 -10 -10 -9 ------- Run | Scr Mat Min Exi Min Traps Triggered 2 | . 2 . . . Indirectly . | . . . . . Trap Hack Attempts . | . . . . . Triggered . | . . . . . Disarmed . | . . . . . Reprogrammed . | . . . . . Reused . | . . . . . Traps Extracted . | . . . . . Installed . | . . . . . Triggered . | . . . . . Machines | -11 -10 -10 -10 -9 ---------- Run | Scr Mat Min Exi Min Machines Disabled 1 | . 1 . . . Max in Single Turn 1 | . 1 . . . Machines Sabotaged . | . . . . . Garrisons Compromised . | . . . . . Overloaded Fab Kills . | . . . . . Fab Network Shutdowns . | . . . . . Hacking | -11 -10 -10 -10 -9 --------- Run | Scr Mat Min Exi Min Machines Accessed 7 | . 2 . 5 . Terminals 1 | . 1 . . . Fabricators . | . . . . . Repair Stations 1 | . 1 . . . Recycling Units . | . . . . . Scanalyzers . | . . . . . Garrison Access . | . . . . . Total Hacks 58 | . 9 . 49 . Successful 56 | . 7 . 49 . Failed 2 | . 2 . . . Catastrophic . | . . . . . Database Lockouts . | . . . . . Manual 2 | . . . 2 . Terminals 6 | . 6 . . . Fabricators . | . . . . . Repair Stations 3 | . 3 . . . Recycling Units . | . . . . . Scanalyzers . | . . . . . Garrison Access . | . . . . . Terminal Hacks 53 | . 4 . 49 . Record 50 | . 2 . 48 . Alert Level 1 | . 1 . . . Recall Investigation 1 | . 1 . . . EX-Prototype ID Bank 1 | . . . 1 . Fabricator Hacks . | . . . . . Repair Station Hacks 3 | . 3 . . . Scan Component 1 | . 1 . . . Repair 1 | . 1 . . . Refit 1 | . 1 . . . Recycling Unit Hacks . | . . . . . Scanalyzer . | . . . . . Garrison Access Hacks . | . . . . . Unauthorized Hacks . | . . . . . Terminals . | . . . . . Fabricators . | . . . . . Repair Stations . | . . . . . Recycling Units . | . . . . . Scanalyzers . | . . . . . Garrison Access . | . . . . . Data Cores Recovered . | . . . . . Used . | . . . . . Hacking Detections 2 | . 2 . . . Full Trace Events 2 | . 2 . . . Feedback Events . | . . . . . Feedback Blocked . | . . . . . Robot Schematics Acquired . | . . . . . Robots Built . | . . . . . Matter . | . . . . . Time . | . . . . . Total Robot Build Rating . | . . . . . Part Schematics Acquired . | . . . . . Parts Built . | . . . . . Matter . | . . . . . Time . | . . . . . Total Part Build Rating . | . . . . . Parts Repaired 1 | . 1 . . . Time 26 | . 26 . . . Parts Recycled . | . . . . . Recycled Matter . | . . . . . Retrieved Matter . | . . . . . Retrieved Components . | . . . . . Parts Scanalyzed . | . . . . . Part Schematics Acquired . | . . . . . Parts Damaged . | . . . . . Bothacking | -11 -10 -10 -10 -9 ------------ Run | Scr Mat Min Exi Min Used RIF Installer . | . . . . . Robots Hacked . | . . . . . Non-combat . | . . . . . Combat . | . . . . . Robot Hacks Applied . | . . . . . Relay Couplers Released . | . . . . . Robots Rewired . | . . . . . Allies Hacked . | . . . . . Hacks Repelled . | . . . . . Allies | -11 -10 -10 -10 -9 -------- Run | Scr Mat Min Exi Min Total Allies . | . . . . . Largest Group . | . . . . . Highest-Rated Group . | . . . . . Highest-Rated Ally . | . . . . . Total Orders . | . . . . . Ally Attacks . | . . . . . Total Damage . | . . . . . Kills . | . . . . . Allies Corrupted . | . . . . . Allies Melted . | . . . . . Intel | -11 -10 -10 -10 -9 ------- Run | Scr Mat Min Exi Min Robot Analysis Total . | . . . . . Derelict Logs Recovered 1 | . . 1 . . Drone Launches . | . . . . . Drone Recoveries . | . . . . . Exploration | -11 -10 -10 -10 -9 ------------- Run | Scr Mat Min Exi Min Turns Passed 3478 | 162 597 603 1476 640 Spaces Moved 2930 | 126 331 418 1618 437 Core 30 | 27 2 1 . . Treads 390 | . 162 228 . . Legs 586 | 99 167 . . 320 Wheels 1924 | . . 189 1618 117 Hover . | . . . . . Flight . | . . . . . Fastest Speed 50 | 50 120 90 80 90 Average Speed 109 | 105 147 128 89 134 Slowest Speed 500 | 120 500 350 90 180 Overloaded Moves . | . . . . . Propulsion Burnouts . | . . . . . Robots Hopped . | . . . . . Cave-ins Triggered . | . . . . . Exploration Rate (%) 44 | 11 33 34 94 52 Regions Visited 4 Branch Regions 3 Pre-discovered Areas 1 | . . . 1 . Known Exits Taken . | . . . . . Unknown Exits Taken 4 | 1 1 1 1 . Scrap Searched 1 | . . 1 . . Spaces Dug . | . . . . . Terrain Destroyed 113 | . 30 . . 83 Melee . | . . . . . Projectile . | . . . . . AOE 113 | . 30 . . 83 Actions | -11 -10 -10 -10 -9 --------- Run | Scr Mat Min Exi Min Total 3125 | 143 402 462 1640 478 Wait 42 | 3 28 5 3 3 Move 2926 | 125 330 417 1617 437 Hop . | . . . . . Pick Up 26 | 5 1 5 7 8 Fast Attach 18 | 4 8 4 2 . Attach 15 | 1 1 4 3 6 Detach 10 | . 3 3 3 1 Swap 6 | . 2 2 . 2 Drop 24 | . 9 4 5 6 Fire 53 | 5 20 16 . 12 Melee 3 | . . . . 3 Ram . | . . . . . Kick . | . . . . . Crush . | . . . . . Escape Stasis . | . . . . . Rewire 2 | . . 2 . . Trap . | . . . . . Miscellaneous . | . . . . . Route ------- -11/Scrapyard -10/Materials -10/Mines -10/Exiles (discovered 2 exits: [*Min x2]) -9/Mines History --------- Turn | Location | Event 2 | -11/Scrapyard | Met Revision 17 84 | -11/Scrapyard | Discovered new exit (range 8) 163 | -11/Scrapyard | Entered Materials 247 | -10/Materials | Met 8R-AWN 309 | -10/Materials | Build established: Mutant 363 | -10/Materials | Repaired Assault Rifle 592 | -10/Materials | Discovered new exit (range 13) 760 | -10/Materials | Entered Mines 762 | -10/Mines | Followed 8R-AWN into the Mines 790 | -10/Mines | Assembled infested the area 795 | -10/Mines | Assisted by a Guerilla fighting off Assembled 857 | -10/Mines | Core integrity fell below 50% 976 | -10/Mines | Learned 4 Materials zone layouts 1068 | -10/Mines | Discovered new exit (range 5) 1363 | -10/Mines | Entered Exiles 1397 | -10/Exiles | Discovered new exit (range 14) 1413 | -10/Exiles | Welcomed by 8R-AWN 1438 | -10/Exiles | Met EX-HEX 1471 | -10/Exiles | Build established: Scavenger-Mutant 1548 | -10/Exiles | Met EX-DEC 1588 | -10/Exiles | Visited The Gauntlet 1740 | -10/Exiles | Learned about 8R-AWN's background 1791 | -10/Exiles | Learned location of Zion (-7) 1852 | -10/Exiles | Discovered new exit (range 14) 2047 | -10/Exiles | Met EX-BIN 2096 | -10/Exiles | Aligned with FarCom system 2097 | -10/Exiles | Given EX-Vault access code 2247 | -10/Exiles | Opened EX-Vault 2257 | -10/Exiles | Found Prototype Energy Cannon 2257 | -10/Exiles | Identified Latent Energy Streamer 2268 | -10/Exiles | Found Prototype Energy Cannon 2276 | -10/Exiles | Identified YOLO Cannon 2288 | -10/Exiles | Found Cloak of Protection 2338 | -10/Exiles | Warned to stay clear of 0b10 Research branches 2600 | -10/Exiles | Build established: Mutant 2839 | -10/Exiles | Stole three prototypes: Latent Energy Streamer, Cloak of Protection, YOLO Cannon 2839 | -10/Exiles | Entered Mines 2846 | -9/Mines | A weapon hastily lodged in a ceiling crevice suddenly fell to the ground 2860 | -9/Mines | Received a Rocket Launcher from a helpful Derelict 2952 | -9/Mines | Core integrity fell below 20% 3479 | -9/Mines | Destroyed self with YOLO Cannon Last Messages --------------- 03153_ System corrupted: Matter fused (-5). 03154_ U-05 Engineer lays Concrete. 03157_ U-05 Engineer builds a Wall. 03163_ U-05 Engineer lays Concrete. 03171_ Acquired 12 matter. 03171_ U-05 Engineer lays Concrete. 03207_ System corrupted: Energy discharge (-152). 03290_ 52KBIXDRZCJQ8J6IOE=RTOY 03326_ System corrupted: Component data lost. 03385_ System corrupted: Heat flow error (+294). 03389_ Overheating: System interference. 03389_ Mak. Axe temporarily disabled. 03422_ System corrupted: Heat flow error (+166). 03461_ System corrupted: Rocket Launcher targeting data glitched. 03476_ Rocket Launcher destroyed. 03477_ Dropped Mak. Axe. 03477_ Lgt. Ion Engine destroyed. 03479_ Destroyed Lgt. Treads. 03479_ Destroyed Lgt. Armor Plating. [Achievement: First Step to Greatness] Map ----- +----------------------------------------------------+ | | | | | ????????????????????????????? | | ????????????????????????????? | | ????????????????????????????? | | ????????????????????????????? | | ?? ?????????????????????????? | | ? ?????????????????????????? | | ? ?????????????????????????? | | ? ?????????????????????????? | | ? ????????????????????????? | | ?? ????????????????????????? | | ?? ????????????????????????? | | ?? ????????????????????????? | | ?? g????????????????????????? | | ?? ????????????????????????? | | ??# ????????????????????????? | | ??# ###?????????????????????? | | ??# ?????????????????????? | | ?##g ##????????????????????? | | ?? #????????????????????? | | ??# #????????????????????? | | ??# #????????????????????? | | ??# #?????????????????????? | | ??##b;#?????????????????????? | | ???#@;#####????????????????## | | ???# #????????????????# | | ???# #????????????????# | | ???# """ #????????????????# | | ???# """ #????????????????# | | ???# """ #????????????????# | | ???# #???????????????## | | ???# #??????????????## | | ???#### ##?????????????## | | ??????# #####?????????## | | ?????## ###???????# | | ????## ##??????# | | ???## ##????## | | ???# ###??# | | ???# ##?# | | ???## #?## | | ????# ## ##?## | | ????# #### #### | | ????## ##??### ## | | ?????## #?????## | | ??????# #??????## | | ??????# #???????## | | ??????# #????????## | | ??????# ?????????# # | | ?????? ?????????## # | +----------------------------------------------------+ Best States ------------- Heat Dissipation 35 Energy Generation 12 Energy Capacity 525 Matter Stores 300 Matter Capacity 300 Sight Range 16 Terrain Scan Range 16 Terrain Scan Density 10 Armor Coverage 150 Evasion (%) 50 Recoil Reduction 2 Item Schematics ----------------- None Robot Schematics ------------------ None Fabricated ------------ Nothing Alien Tech Used ----------------- None Achievements -------------- First Step to Greatness I Survived The Infestation Librarian Part-time Mechanic Risk Taker Tourist Uninvited Guest Challenges ------------ None Game ------ Seed RocketAlloyMultirail Manual? 0 Play Time 02:05:49 Cumulative 4.1 hours Start 2020.05.15 @ 14:14:26 End 2020.05.15 @ 18:06:50 Sessions 1 Manual Loads 0 Difficulty Rogue Special Mode None Game No. 1 Rogue 1 Adventurer 0 Explorer 0 Win Type - Total 0 Types 0/0/0/0/0/0/0 Lore% 10 Gallery% 2 Achievement% 2 Wizard Run 0 Options --------- ASCII 0 Keyboard 0 Movement Arrows Keybinds 0 Fullscreen 1 Font 18/SmallcapsGlow Map View 76x50 Tactical HUD 1 Map Filters NONE Filters NONE Steam 1 RUN: 72df4442-f78a-49d0-b54c-54a1de95127a